fUSD/lending_fUSD_20250206
["ID","MTS","AMOUNT","RATE_DAILY","PERIOD"]
[351827457,1738804248978,-500.0,0.00020155,4]
[351827459,1738804248988,-500.0,0.00020155,4]
[351827462,1738804248998,-500.0,0.00020155,4]
[351827464,1738804249010,-500.0,0.00020155,4]
[351827466,1738804249022,-500.0,0.00020155,4]
[351827468,1738804249034,-419.177381,0.00020155,4]
[351827470,1738804249047,-500.0,0.00020155,4]
[351827472,1738804249058,-500.0,0.00020155,4]
[351827474,1738804249069,-598.61115145,0.00020155,4]
[351827476,1738804249079,-500.0,0.00020155,4]
[351827477,1738804249089,-500.0,0.00020155,4]
[351827479,1738804249099,-500.0,0.00020155,4]
[351827482,1738804249115,-500.0,0.00020155,4]
[351827484,1738804249126,-500.0,0.00020155,4]
[351827486,1738804249137,-500.0,0.00020155,4]
[351827487,1738804249149,-500.0,0.00020155,4]
[351827489,1738804249161,-500.0,0.00020155,4]
[351827491,1738804249172,-500.0,0.00020155,4]
[351827493,1738804249183,-500.0,0.00020155,4]
[351827495,1738804249193,-500.0,0.00020155,4]
[351827497,1738804249203,-500.0,0.00020155,4]
[351827499,1738804249213,-500.0,0.00020155,4]
[351827501,1738804249225,-500.0,0.00020155,4]
[351827503,1738804249235,-500.0,0.00020155,4]
[351827505,1738804249246,-500.0,0.00020155,4]
[351827507,1738804249258,-500.0,0.00020155,4]
[351827509,1738804249269,-500.0,0.00020155,4]
[351827511,1738804249281,-316.33,0.00020155,4]
[351827513,1738804249292,-500.0,0.00020155,4]
[351827515,1738804249301,-508.06929682,0.00020155,4]
[351827517,1738804249312,-500.0,0.00020155,4]
[351827519,1738804249322,-500.0,0.00020155,4]
[351827521,1738804249332,-500.0,0.00020155,4]
[351827523,1738804249342,-500.0,0.00020155,4]
[351827525,1738804249351,-583.82,0.00020155,4]
[351827527,1738804249361,-500.0,0.00020155,4]
[351827529,1738804249371,-500.0,0.00020155,4]
[351827531,1738804249381,-407.33,0.00020155,4]
[351827533,1738804249391,-500.0,0.00020155,4]
[351827535,1738804249401,-500.0,0.00020155,4]
[351827537,1738804249413,-500.0,0.00020155,4]
[351827539,1738804249426,-500.0,0.00020155,4]
[351827541,1738804249440,-500.0,0.00020155,4]
[351827543,1738804249450,-184.86,0.00020155,4]
[351827545,1738804249462,-500.0,0.00020155,4]
[351827547,1738804249472,-500.0,0.00020155,4]
[351827549,1738804249482,-500.0,0.00020155,4]
[351827551,1738804249492,-500.0,0.00020155,4]
[351827553,1738804249503,-500.0,0.00020155,4]
[351827555,1738804249513,-500.0,0.00020155,4]
[351827557,1738804249524,-492.7391837,0.00020155,4]
[351827559,1738804249534,-500.0,0.00020155,4]
[351827561,1738804249545,-500.0,0.00020155,4]
[351827563,1738804249556,-500.0,0.00020155,4]
[351827565,1738804249566,-500.0,0.00020155,4]
[351827567,1738804249576,-500.0,0.00020155,4]
[351827569,1738804249586,-500.0,0.00020155,4]
[351827571,1738804249594,-500.0,0.00020155,4]
[351827573,1738804249603,-500.0,0.00020155,4]
[351827575,1738804249613,-500.0,0.00020155,4]
[351827577,1738804249622,-500.0,0.00020155,4]
[351827579,1738804249632,-500.0,0.00020155,4]
[351827581,1738804249642,-500.0,0.00020155,4]
[351827583,1738804249651,-500.0,0.00020155,4]
[351827585,1738804249662,-500.0,0.00020155,4]
[351827587,1738804249672,-477.89,0.00020155,4]
[351827589,1738804249700,-500.0,0.00020155,4]
[351827591,1738804249711,-500.0,0.00020155,4]
[351827594,1738804249721,-500.0,0.00020155,4]
[351827596,1738804249732,-500.0,0.00020155,4]
[351827597,1738804249742,-330.51,0.00020155,4]
[351827600,1738804249753,-500.0,0.00020155,4]
[351827601,1738804249763,-500.0,0.00020155,4]
[351827603,1738804249773,-500.0,0.00020155,4]
[351827605,1738804249783,-489.37068582,0.00020155,4]
[351827607,1738804249793,-500.0,0.00020155,4]
[351827609,1738804249803,-500.0,0.00020155,4]
[351827611,1738804249812,-263.42,0.00020155,4]
[351827613,1738804249822,-500.0,0.00020155,4]
[351827615,1738804249832,-500.0,0.00020155,4]
[351827618,1738804249841,-402.09,0.00020155,4]
[351827619,1738804249851,-500.0,0.00020155,4]
[351827621,1738804249861,-500.0,0.00020155,4]
[351827623,1738804249870,-500.0,0.00020155,4]
[351827625,1738804249880,-500.0,0.00020155,4]
[351827627,1738804249890,-296.692289,0.00020155,4]
[351827629,1738804249900,-500.0,0.00020155,4]
[351827632,1738804249911,-500.0,0.00020155,4]
[351827633,1738804249920,-500.0,0.00020155,4]
[351827635,1738804249930,-540.17,0.00020155,4]
[351827637,1738804249940,-500.0,0.00020155,4]
[351827640,1738804249950,-500.0,0.00020155,4]
[351827641,1738804249959,-435.09852096,0.00020155,4]
[351827643,1738804249971,-365.12054342,0.00020155,4]
[351827646,1738804249981,-500.0,0.00020155,4]
[351827648,1738804249992,-1000.0,0.00020155,4]
[351827650,1738804250002,-500.0,0.00020155,4]
[351827652,1738804250012,-500.0,0.00020155,4]
[351827654,1738804250021,-341.42193782,0.00020155,4]
[351827656,1738804250030,-500.0,0.00020155,4]
[351827658,1738804250040,-500.0,0.00020155,4]
[351827660,1738804250049,-500.0,0.00020155,4]
[351827662,1738804250058,-500.0,0.00020155,4]
[351827664,1738804250068,-500.0,0.00020155,4]
[351827666,1738804250077,-192.47,0.00020155,4]
[351827668,1738804250087,-236.79328706,0.00020155,4]
[351827669,1738804250096,-500.0,0.00020155,4]
[351827671,1738804250106,-1041.69,0.00020155,2]
[351827673,1738804250115,-1041.69,0.00020155,2]
[351827675,1738804250125,-1041.69,0.00020155,2]
[351827677,1738804250134,-1041.69,0.00020155,2]
[351827679,1738804250143,-1041.69,0.00020155,2]
[351827681,1738804250153,-1041.69,0.00020155,2]
[351827683,1738804250163,-1041.69,0.00020155,2]
[351827685,1738804250173,-1041.69,0.00020155,2]
[351827687,1738804250182,-1041.69,0.00020155,2]
[351827698,1738804250277,-1041.69,0.00020155,2]
[351827700,1738804250287,-1041.69,0.00020155,2]
[351827702,1738804250297,-365.53,0.00020155,4]
[351827704,1738804250306,-1041.69,0.00020155,2]
[351827706,1738804250315,-1041.69,0.00020155,2]
[351827708,1738804250324,-1041.69,0.00020155,2]
[351827710,1738804250333,-1041.69,0.00020155,2]
[351827712,1738804250342,-1041.69,0.00020155,2]
[351827714,1738804250351,-1041.69,0.00020155,2]
[351827716,1738804250360,-1041.69,0.00020155,2]
[351827718,1738804250371,-1041.69,0.00020155,2]
[351827720,1738804250381,-1041.69,0.00020155,2]
[351827722,1738804250390,-1041.69,0.00020155,2]
[351827724,1738804250399,-1041.69,0.00020155,2]
[351827726,1738804250409,-1041.69,0.00020155,2]
[351827728,1738804250418,-1041.88022633,0.00020155,2]
[351827730,1738804250427,-500.0,0.00020155,4]
[351827732,1738804250436,-222.94,0.00020155,4]
[351827734,1738804250447,-387.915805,0.00020155,4]
[351827736,1738804250456,-500.0,0.00020155,4]
[351827738,1738804250466,-227.8156742,0.00020155,4]
[351827740,1738804250475,-500.0,0.00020155,4]
[351827742,1738804250484,-500.0,0.00020155,4]
[351827744,1738804250493,-500.0,0.00020155,4]
[351827746,1738804250503,-500.0,0.00020155,4]
[351827748,1738804250512,-500.0,0.00020155,4]
[351827750,1738804250522,-500.0,0.00020155,4]
[351827752,1738804250531,-500.0,0.00020155,4]
[351827754,1738804250540,-500.0,0.00020155,4]
[351827756,1738804250550,-588.14,0.00020155,4]
[351827758,1738804250559,-500.0,0.00020155,4]
[351827760,1738804250568,-547.16964259,0.00020155,4]
[351827762,1738804250577,-500.0,0.00020155,4]
[351827764,1738804250586,-500.0,0.00020155,4]
[351827766,1738804250596,-500.0,0.00020155,4]
[351827768,1738804250605,-500.0,0.00020155,4]
[351827770,1738804250614,-235.1,0.00020155,4]
[351827772,1738804250623,-500.0,0.00020155,4]
[351827774,1738804250632,-500.0,0.00020155,4]
[351827776,1738804250642,-500.0,0.00020155,4]
[351827778,1738804250651,-500.0,0.00020155,4]
[351827780,1738804250661,-500.0,0.00020155,4]
[351827782,1738804250670,-537.57,0.00020155,4]
[351827784,1738804250680,-500.0,0.00020155,4]
[351827786,1738804250691,-500.0,0.00020155,4]
[351827788,1738804250700,-500.0,0.00020155,4]
[351827790,1738804250709,-500.0,0.00020155,4]
[351827792,1738804250718,-323.44,0.00020155,4]
[351827794,1738804250727,-627.23,0.00020155,4]
[351827796,1738804250736,-500.0,0.00020155,4]
[351827798,1738804250746,-500.0,0.00020155,4]
[351827800,1738804250755,-500.0,0.00020155,4]
[351827802,1738804250766,-500.0,0.00020155,4]
[351827804,1738804250776,-500.0,0.00020155,4]
[351827806,1738804250785,-500.0,0.00020155,4]
[351827807,1738804250794,-348.81,0.00020155,4]
[351827808,1738804250804,-500.0,0.00020155,4]
[351827809,1738804250813,-500.0,0.00020155,4]
[351827810,1738804250823,-500.0,0.00020155,4]
[351827811,1738804250832,-1511.91,0.00020155,2]
[351827812,1738804250841,-500.0,0.00020155,4]
[351827813,1738804250851,-500.0,0.00020155,4]
[351827814,1738804250860,-500.0,0.00020155,4]
[351827815,1738804250869,-495.09835633,0.00020155,4]
[351827816,1738804250879,-500.0,0.00020155,4]
[351827817,1738804250889,-2500.0,0.00020155,4]
[351827818,1738804250899,-2500.0,0.00020155,4]
[351827819,1738804250909,-2500.0,0.00020155,4]
[351827821,1738804250919,-2500.0,0.00020155,4]
[351827823,1738804250928,-2500.0,0.00020155,4]
[351827825,1738804250938,-2500.0,0.00020155,4]
[351827827,1738804250947,-2500.0,0.00020155,4]
[351827829,1738804250956,-2500.0,0.00020155,4]
[351827831,1738804250969,-2500.0,0.00020155,4]
[351827833,1738804250980,-2500.0,0.00020155,4]
[351827835,1738804250989,-2500.0,0.00020155,4]
[351827837,1738804250999,-2500.0,0.00020155,4]
[351827839,1738804251008,-500.0,0.00020155,4]
[351827841,1738804251018,-2500.0,0.00020155,4]
[351827843,1738804251027,-500.0,0.00020155,4]
[351827845,1738804251037,-2500.0,0.00020155,4]
[351827847,1738804251046,-500.0,0.00020155,4]
[351827849,1738804251056,-2500.0,0.00020155,4]
[351827851,1738804251065,-2500.0,0.00020155,4]
[351827853,1738804251075,-2500.0,0.00020155,4]
[351827855,1738804251086,-2500.0,0.00020155,4]
[351827856,1738804251095,-2500.0,0.00020155,4]
[351827858,1738804251106,-2500.0,0.00020155,4]
[351827861,1738804251117,-2500.0,0.00020155,4]
[351827863,1738804251127,-2500.0,0.00020155,4]
[351827865,1738804251136,-500.0,0.00020155,4]
[351827867,1738804251146,-500.0,0.00020155,4]
[351827869,1738804251156,-500.0,0.00020155,4]
[351827870,1738804251166,-275.36,0.00020155,4]
[351827873,1738804251176,-405.43,0.00020155,4]
[351827874,1738804251186,-500.0,0.00020155,4]
[351827876,1738804251195,-500.0,0.00020155,4]
[351827878,1738804251205,-500.0,0.00020155,4]
[351827880,1738804251215,-500.0,0.00020155,4]
[351827882,1738804251224,-500.0,0.00020155,4]
[351827884,1738804251234,-500.0,0.00020155,4]
[351827886,1738804251243,-500.0,0.00020155,4]
[351827889,1738804251253,-500.0,0.00020155,4]
[351827891,1738804251263,-500.0,0.00020155,4]
[351827893,1738804251272,-500.0,0.00020155,4]
[351827894,1738804251282,-500.0,0.00020155,4]
[351827896,1738804251291,-500.0,0.00020155,4]
[351827898,1738804251300,-500.0,0.00020155,4]
[351827900,1738804251312,-500.70519752,0.00020155,4]
[351827902,1738804251321,-500.0,0.00020155,4]
[351827904,1738804251330,-500.0,0.00020155,4]
[351827907,1738804251340,-500.0,0.00020155,4]
[351827908,1738804251349,-500.0,0.00020155,4]
[351827910,1738804251359,-500.0,0.00020155,4]
[351827912,1738804251369,-500.0,0.00020155,4]
[351827913,1738804251378,-320.5,0.00020155,4]
[351827915,1738804251387,-500.0,0.00020155,4]
[351827917,1738804251397,-500.0,0.00020155,4]
[351827919,1738804251406,-500.0,0.00020155,4]
[351827921,1738804251416,-421.88,0.00020155,4]
[351827923,1738804251426,-829.0,0.00020155,2]
[351827925,1738804251435,-474592.59825944,0.00020156,30]
[351827927,1738804251444,-253956.03495323,0.00020156,30]
[351827929,1738804251454,-344.56835252,0.00020156,2]
[351827931,1738804251464,-208920.39265246,0.00020156,30]
[351827933,1738804251474,-210.29357938,0.00020156,7]
[351827935,1738804251483,-7795.84695962,0.00020156,7]
[351827937,1738804251493,-611.29331537,0.00020156,6]
[351827939,1738804251502,-1011.53908684,0.00020156,15]
[351827940,1738804251511,-1375.90921136,0.00020156,10]
[351827942,1738804251521,-753.47535371,0.00020156,2]
[351827944,1738804251530,-1319.20966699,0.00020156,120]
[351827946,1738804251539,-1504.44576914,0.00020156,2]
[351827948,1738804251548,-235.07747506,0.00020156,120]
[351827950,1738804251558,-415339.42723802,0.00020156,2]
[351827952,1738804251568,-1018.52465303,0.00020156,2]
[351827954,1738804251577,-5128.46832445,0.00020156,2]
[351827956,1738804251586,-597.06540768,0.00020156,120]
[351827958,1738804251596,-523.63606432,0.00020156,7]
[351827960,1738804251605,-2428.93110268,0.00020156,2]
[351827962,1738804251614,-300.0,0.00020156,15]
[351827964,1738804251623,-80059.64404309,0.00020156,2]
[351827965,1738804251633,-2383.57173719,0.00020156,120]
[351827967,1738804251643,-213292.10396599,0.00020156,2]
[351827969,1738804251653,-150.28700133,0.00020156,2]
[351827971,1738804251663,-964.55487147,0.00020156,5]
[351827973,1738804251672,-5019.80882627,0.00020156,2]
[351827975,1738804251685,-327.28725542,0.00020156,90]
[351827977,1738804251694,-2241.90643459,0.00020156,14]
[351827979,1738804251703,-246.50081637,0.00020156,2]
[351827981,1738804251713,-162.64355675,0.00020156,2]
[351827983,1738804251722,-861.92232915,0.00020156,5]
[351827985,1738804251731,-1248.39053839,0.00020156,2]
[351827987,1738804251741,-207.27285598,0.00020156,60]
[351827989,1738804251750,-7637.73587063,0.00020156,2]
[351827991,1738804251760,-51992.91610937,0.00020156,30]
[351827993,1738804251769,-22814.71653076,0.00020156,120]
[351827995,1738804251779,-1223.03565687,0.00020156,15]
[351827997,1738804251789,-2209.96234237,0.00020156,10]
[351827999,1738804251798,-180.24965808,0.00020156,2]
[351828001,1738804251807,-1030.45047804,0.00020156,2]
[351828003,1738804251818,-584.643745,0.00020156,5]
[351828005,1738804251828,-588.51293736,0.00020156,2]
[351828007,1738804251837,-213602.21887268,0.00020156,120]
[351828009,1738804251846,-9141.47857384,0.00020156,2]
[351828011,1738804251856,-1297.75910965,0.00020156,2]
[351828013,1738804251865,-2240.11638581,0.00020156,10]
[351828015,1738804251875,-1000.0,0.00020156,10]
[351828017,1738804251884,-3384.859558,0.00020156,2]
[351828019,1738804251893,-20583.70724742,0.00020156,7]
[351828020,1738804251902,-4361.83827114,0.00020156,7]
[351828023,1738804251913,-204.76041046,0.00020156,30]
[351828024,1738804251922,-22554.14542823,0.00020156,2]
[351828027,1738804251933,-12702.05958817,0.00020156,2]
[351828028,1738804251943,-1901.57580763,0.00020156,2]
[351828031,1738804251953,-182.16501923,0.00020156,2]
[351828033,1738804251963,-14689.92138763,0.00020156,3]
[351828035,1738804251977,-643.0,0.00020156,2]
[351828037,1738804251987,-5261.45560601,0.00020156,4]
[351828039,1738804252001,-960.2776656,0.00020156,2]
[351828041,1738804252011,-15279.33318983,0.00020156,10]
[351828042,1738804252021,-9543.94558396,0.00020156,2]
[351828044,1738804252031,-167.49066158,0.00020156,120]
[351828046,1738804252040,-500.0,0.00020156,10]
[351828048,1738804252050,-18679.40023478,0.00020156,5]
[351828050,1738804252060,-25087.55494837,0.00020156,2]
[351828052,1738804252070,-12729.6387914,0.00020156,30]
[351828054,1738804252081,-567.17406977,0.00020156,2]
[351828056,1738804252090,-51399.73112447,0.00020156,30]
[351828058,1738804252100,-1818.70984296,0.00020156,2]
[351828060,1738804252109,-3211.42747722,0.00020156,2]
[351828062,1738804252118,-152.80861905,0.00020156,2]
[351828064,1738804252127,-173.65084069,0.00020156,2]
[351828066,1738804252137,-60990.58445399,0.00020156,10]
[351828068,1738804252146,-10562.71386169,0.00020156,15]
[351828070,1738804252156,-7016.12740406,0.00020156,2]
[351828072,1738804252167,-51047.40924616,0.00020156,7]
[351828074,1738804252176,-550.0,0.00020156,2]
[351828076,1738804252186,-1451.97928204,0.00020156,2]
[351828077,1738804252195,-998.11223689,0.00020156,2]
[351828079,1738804252203,-1022.13766792,0.00020156,7]
[351828081,1738804252212,-945.21558684,0.00020156,2]
[351828083,1738804252221,-10599.60160994,0.00020156,2]
[351828084,1738804252230,-168031.54444435,0.00020156,2]
[351828086,1738804252240,-14796.60547899,0.00020156,2]
[351828088,1738804252249,-826.49454595,0.00020156,120]
[351828090,1738804252259,-226.6284731,0.00020156,2]
[351828092,1738804252268,-171.99259429,0.00020156,2]
[351828094,1738804252278,-1266.93293908,0.00020156,4]
[351828096,1738804252287,-6000.0,0.00020156,2]
[351828098,1738804252296,-371.61831817,0.00020156,2]
[351828100,1738804252306,-1455.63817187,0.00020156,2]
[351828102,1738804252316,-1022.9843446,0.00020156,2]
[351828104,1738804252325,-457.84419577,0.00020156,7]
[351828106,1738804252334,-9928.85819498,0.00020156,2]
[351828108,1738804252344,-4995.87225623,0.00020156,7]
[351828119,1738804252446,-557.58420907,0.00020156,2]
[351828121,1738804252456,-150.0,0.00020156,2]
[351828123,1738804252466,-7697.53372402,0.00020156,2]
[351828125,1738804252476,-223.47581895,0.00020156,30]
[351828127,1738804252486,-601.09290017,0.00020156,2]
[351828129,1738804252496,-620.11036775,0.00020156,2]
[351828131,1738804252506,-216.01404924,0.00020156,5]
[351828133,1738804252516,-212.57817375,0.00020156,2]
[351828135,1738804252526,-879.86948005,0.00020156,30]
[351828137,1738804252536,-162586.15799887,0.00020156,2]
[351828140,1738804252551,-1073.91949204,0.00020156,120]
[351828142,1738804252571,-445.3780215,0.00020156,2]
[351828143,1738804252587,-1056.80750469,0.00020156,2]
[351828146,1738804252598,-21068.63476221,0.00020156,2]
[351828147,1738804252608,-2500.0,0.00020156,2]
[351828149,1738804252619,-573.75217599,0.00020156,2]
[351828151,1738804252630,-140739.87423036,0.00020156,3]
[351828153,1738804252642,-338.9306735,0.00020156,2]
[351828155,1738804252652,-1099.97158474,0.00020156,2]
[351828158,1738804252663,-533.75030296,0.00020156,2]
[351828160,1738804252672,-274.28262241,0.00020156,2]
[351828161,1738804252682,-903.54586966,0.00020156,2]
[351828163,1738804252691,-4774.53968255,0.00020156,60]
[351828165,1738804252701,-476.97998075,0.00020156,2]
[351828168,1738804252711,-15441.49337318,0.00020156,2]
[351828170,1738804252722,-221.33642809,0.00020156,120]
[351828172,1738804252732,-168.60861827,0.00020156,2]
[351828174,1738804252742,-227.39157957,0.00020156,2]
[351828176,1738804252752,-182435.88793614,0.00020156,7]
[351828178,1738804252764,-1570.89710137,0.00020156,2]
[351828180,1738804252773,-55067.61117976,0.00020156,2]
[351828182,1738804252783,-14312.05293409,0.00020156,2]
[351828184,1738804252793,-49510.20456732,0.00020156,2]
[351828186,1738804252802,-3070.4321185,0.00020156,10]
[351828188,1738804252811,-4783.39544043,0.00020156,10]
[351828190,1738804252821,-542.33605831,0.00020156,2]
[351828192,1738804252830,-4958.84836183,0.00020156,2]
[351828194,1738804252840,-5146.80093561,0.00020156,2]
[351828196,1738804252849,-1001.53932504,0.00020156,2]
[351828198,1738804252858,-270.58246499,0.00020156,10]
[351828199,1738804252867,-361.11257537,0.00020156,2]
[351828202,1738804252877,-13145.87195188,0.00020156,5]
[351828203,1738804252886,-2183.21498875,0.00020156,2]
[351828205,1738804252895,-57795.4907643,0.00020156,30]
[351828207,1738804252905,-280.82747214,0.00020156,2]
[351828209,1738804252915,-713.54712566,0.00020156,120]
[351828210,1738804252924,-618.94297619,0.00020156,30]
[351828211,1738804252933,-305583.64825169,0.00020156,30]
[351828212,1738804252942,-742.17169769,0.00020156,2]
[351828213,1738804252951,-56570.54070197,0.00020156,30]
[351828214,1738804252961,-63235.70782597,0.00020156,30]
[351828215,1738804252976,-14621.41131346,0.00020156,2]
[351828216,1738804252985,-22144.66354307,0.00020156,45]
[351828217,1738804252995,-24818.26162025,0.00020156,14]
[351828218,1738804253005,-5757.58404745,0.00020156,10]
[351828219,1738804253014,-2936319.67284275,0.00020156,60]
[351828220,1738804253056,-500.0,0.00020106,4]
[351828221,1738804253066,-20321.14984416,0.00020156,60]
[351828222,1738804253082,-500.0,0.00020106,4]
[351828223,1738804253092,-78752.0,0.00020156,60]
[351828224,1738804253105,-1068.85270676,0.00020156,60]
[351828225,1738804253116,-607.36,0.00020156,60]
[351828226,1738804253132,-3408.2034,0.00020156,60]
[351828227,1738804253144,-75803.17813985,0.00020156,60]
[351828228,1738804253154,-150.0,0.00020156,30]
[351828229,1738804253164,-584.44934167,0.00020156,3]
[351828230,1738804253174,-1000.0,0.00020156,60]
[351828231,1738804253184,-1000.0,0.00020156,60]
[351828232,1738804253194,-1000.0,0.00020156,30]
[351828233,1738804253204,-1414.81994857,0.00020156,60]
[351828234,1738804253213,-1000.0,0.00020156,60]
[351828235,1738804253223,-1000.0,0.00020156,30]
[351828236,1738804253232,-1000.0,0.00020156,30]
[351828237,1738804253241,-1000.0,0.00020156,60]
[351828238,1738804253251,-1000.0,0.00020156,30]
[351828239,1738804253260,-1000.0,0.00020156,30]
[351828240,1738804253270,-1000.0,0.00020156,60]
[351828241,1738804253280,-150.0,0.00020156,2]
[351828242,1738804253290,-1000.0,0.00020156,30]
[351828243,1738804253299,-1000.0,0.00020156,30]
[351828244,1738804253308,-1000.0,0.00020156,60]
[351828246,1738804253318,-1000.0,0.00020156,30]
[351828248,1738804253327,-1000.0,0.00020156,60]
[351828250,1738804253337,-1000.0,0.00020156,60]
[351828252,1738804253347,-1000.0,0.00020156,30]
[351828254,1738804253356,-1000.0,0.00020156,60]
[351828256,1738804253365,-1000.0,0.00020156,30]
[351828258,1738804253374,-1000.0,0.00020156,120]
[351828260,1738804253384,-5000.0,0.00020156,30]
[351828261,1738804253394,-1076.0,0.00020156,120]
[351828262,1738804253403,-1003.69640723,0.00020156,30]
[351828263,1738804253412,-151.0,0.00020156,2]
[351828264,1738804253422,-151.0,0.00020156,2]
[351828265,1738804253431,-7500.0,0.00020156,2]
[351828266,1738804253441,-7500.0,0.00020156,2]
[351828267,1738804253450,-600.465488,0.00020156,2]
[351828268,1738804253459,-151.0,0.00020156,2]
[351828269,1738804253468,-600.465488,0.00020156,2]
[351828270,1738804253478,-151.0,0.00020156,2]
[351828271,1738804253487,-166.66,0.00020157,2]
[351828272,1738804253497,-150.0,0.00020167,2]
[351828273,1738804253506,-166.35412606,0.00020173,2]
[351828274,1738804253515,-500.0,0.00020173,2]
[351828275,1738804253525,-500.11159919,0.00020173,2]
[351828276,1738804253535,-500.0,0.00020173,2]
[351828277,1738804253544,-153370.63265818,0.00020182,2]
[351828278,1738804253553,-5000.0,0.00020182,2]
[351828279,1738804253562,-150.0,0.00020187,2]
[351828280,1738804253573,-300.0,0.00020188,2]
[351828281,1738804253582,-179.49,0.00020192,2]
[351828282,1738804253591,-223.83233964,0.00020192,5]
[351828283,1738804253601,-5000.0,0.00020193,2]
[351828284,1738804253613,-4084.31,0.000202,2]
[351828285,1738804253623,-5000.0,0.00020209,2]
[351828286,1738804253632,-25000.0,0.0002021,2]
[351828287,1738804253642,-1541.0,0.00020217,2]
[351828288,1738804253651,-463.84,0.00020219,2]
[351828289,1738804253661,-150.0,0.0002023,120]
[351828290,1738804253670,-1865.04,0.00020247,2]
[351828291,1738804253681,-150.0,0.00020256,120]
[351828292,1738804253690,-2588.63,0.00020266,2]
[351828293,1738804253699,-5000.0,0.00020267,2]
[351828294,1738804253708,-5000.0,0.00020278,2]
[351828295,1738804253718,-5000.0,0.00020288,2]
[351828296,1738804253728,-25000.0,0.00020291,2]
[351828297,1738804253737,-500.0,0.00020292,2]
[351828298,1738804253747,-2565.25,0.00020323,2]
[351828299,1738804253757,-739.93,0.00020338,2]
[351828300,1738804253767,-2528.66,0.00020358,2]
[351828301,1738804253776,-2565.25,0.00020372,2]
[351828302,1738804253786,-5000.0,0.00020411,2]
[351828303,1738804253795,-1541.0,0.00020415,2]
[351828304,1738804253805,-14581.46,0.00020423,2]
[351828305,1738804253814,-500.0,0.00020429,2]
[351828306,1738804253825,-2568.74,0.00020431,2]
[351828307,1738804253834,-999.999999,0.00020432,4]
[351828308,1738804253844,-5000.0,0.0002044,2]
[351828309,1738804253853,-150.0,0.0002045,120]
[351828310,1738804253863,-150.0,0.00020463,120]
[351828311,1738804253873,-5000.0,0.00020491,2]
[351828312,1738804253883,-2500.0,0.000205,2]
[351828313,1738804253893,-2110.0,0.000205,2]
[351828314,1738804253903,-3004.91,0.00020501,2]
[351828315,1738804253912,-177.73,0.00020548,2]
[351828316,1738804253921,-20471.8,0.00020548,2]
[351828317,1738804253931,-205.192406,0.00020548,2]
[351828318,1738804253941,-500.0,0.00020566,2]
[351828319,1738804253951,-150.0,0.0002058,120]
[351828320,1738804253961,-91061.9806647,0.000206,2]
[351828321,1738804253975,-200.0,0.00020606,2]
[351828322,1738804253984,-2000.0,0.0002062,2]
[351828323,1738804253994,-5000.0,0.00020634,2]
[351828324,1738804254004,-25000.0,0.00020639,2]
[351828325,1738804254014,-5000.0,0.00020644,2]
[351828326,1738804254024,-167.31,0.00020655,2]
[351828327,1738804254034,-4023.0,0.00020668,2]
[351828328,1738804254043,-947.16,0.00020675,2]
[351828329,1738804254053,-150.0,0.00020692,2]
[351828330,1738804254063,-21727.93978268,0.000207,2]
[351828331,1738804254073,-162.23610024,0.0002071,3]
[351828332,1738804254082,-25000.0,0.00020713,2]
[351828333,1738804254092,-150.0,0.00020719,120]
[351828334,1738804254102,-500.0,0.00020721,2]
[351828335,1738804254112,-150.0,0.00020727,120]
[351828336,1738804254124,-1361.56863662,0.00020728,15]
[351828337,1738804254135,-150.0,0.0002073,120]
[351828338,1738804254144,-5000.0,0.00020735,2]
[351828339,1738804254154,-25000.0,0.00020743,2]